fUSD/lending_fUSD_20250311
["ID","MTS","AMOUNT","RATE_DAILY","PERIOD"]
[355935300,1741720245636,-500.0,8.995e-05,2]
[355935302,1741720245646,-500.0,8.995e-05,2]
[355935303,1741720245655,-500.0,8.995e-05,2]
[355935304,1741720245665,-536.40210252,8.995e-05,2]
[355935305,1741720245675,-500.0,8.995e-05,2]
[355935306,1741720245685,-391.50942076,8.995e-05,2]
[355935308,1741720245694,-500.0,8.995e-05,2]
[355935309,1741720245705,-500.0,8.995e-05,2]
[355935310,1741720245715,-500.0,8.995e-05,2]
[355935311,1741720245725,-500.0,8.995e-05,2]
[355935312,1741720245735,-500.0,8.995e-05,2]
[355935313,1741720245744,-597.53589276,8.995e-05,2]
[355935314,1741720245754,-500.0,8.995e-05,2]
[355935315,1741720245765,-518.37539696,8.995e-05,2]
[355935316,1741720245774,-1550.41,8.995e-05,2]
[355935317,1741720245783,-500.0,8.995e-05,2]
[355935318,1741720245793,-500.0,8.995e-05,2]
[355935319,1741720245802,-500.0,8.995e-05,2]
[355935320,1741720245812,-588.6287264,8.995e-05,2]
[355935321,1741720245821,-500.0,8.995e-05,2]
[355935322,1741720245830,-500.0,8.995e-05,2]
[355935323,1741720245839,-539.84,8.995e-05,2]
[355935324,1741720245849,-500.0,8.995e-05,2]
[355935325,1741720245859,-514.32,8.995e-05,2]
[355935326,1741720245871,-500.0,8.995e-05,2]
[355935327,1741720245882,-500.0,8.995e-05,2]
[355935328,1741720245892,-606.37,8.995e-05,2]
[355935329,1741720245902,-500.0,8.995e-05,2]
[355935330,1741720245912,-500.0,8.995e-05,2]
[355935331,1741720245922,-500.0,8.995e-05,2]
[355935332,1741720245932,-500.0,8.995e-05,2]
[355935333,1741720245941,-500.0,8.995e-05,2]
[355935334,1741720245951,-500.0,8.995e-05,2]
[355935335,1741720245961,-500.0,8.995e-05,2]
[355935336,1741720245970,-500.0,8.995e-05,2]
[355935337,1741720245980,-500.0,8.995e-05,2]
[355935338,1741720245989,-500.0,8.995e-05,2]
[355935339,1741720245998,-500.0,8.995e-05,2]
[355935340,1741720246008,-500.0,8.995e-05,2]
[355935341,1741720246018,-1360.52,8.995e-05,2]
[355935342,1741720246027,-1531.59,8.995e-05,2]
[355935343,1741720246036,-773.01,8.995e-05,2]
[355935344,1741720246046,-917.06,8.995e-05,2]
[355935345,1741720246055,-500.0,8.995e-05,2]
[355935346,1741720246066,-612.92,8.995e-05,2]
[355935347,1741720246075,-500.0,8.995e-05,2]
[355935348,1741720246085,-500.0,8.995e-05,2]
[355935349,1741720246094,-663.06,8.995e-05,2]
[355935350,1741720246104,-1813.43,8.995e-05,2]
[355935351,1741720246114,-500.0,8.995e-05,2]
[355935352,1741720246125,-500.0,8.995e-05,2]
[355935353,1741720246135,-500.0,8.995e-05,2]
[355935355,1741720246145,-500.0,8.995e-05,2]
[355935356,1741720246156,-500.0,8.995e-05,2]
[355935357,1741720246169,-500.0,8.995e-05,2]
[355935358,1741720246178,-1466.44,8.995e-05,2]
[355935359,1741720246187,-2048.32,8.995e-05,2]
[355935360,1741720246197,-500.0,8.995e-05,2]
[355935361,1741720246207,-500.0,8.995e-05,2]
[355935363,1741720246216,-677.62,8.995e-05,2]
[355935364,1741720246225,-500.0,8.995e-05,2]
[355935365,1741720246236,-500.0,8.995e-05,2]
[355935366,1741720246244,-1104.87,8.995e-05,2]
[355935367,1741720246254,-500.0,8.995e-05,2]
[355935368,1741720246263,-500.0,8.995e-05,2]
[355935369,1741720246272,-500.0,8.995e-05,2]
[355935370,1741720246282,-500.0,8.995e-05,2]
[355935371,1741720246292,-717.54,8.995e-05,2]
[355935372,1741720246301,-831.03,8.995e-05,2]
[355935373,1741720246312,-500.0,8.995e-05,2]
[355935374,1741720246321,-1069.76,8.995e-05,2]
[355935375,1741720246332,-500.0,8.995e-05,2]
[355935376,1741720246341,-561.41,8.995e-05,2]
[355935377,1741720246351,-1038.46,8.995e-05,2]
[355935378,1741720246360,-500.0,8.995e-05,2]
[355935379,1741720246371,-500.0,8.995e-05,2]
[355935380,1741720246381,-500.0,8.995e-05,2]
[355935381,1741720246391,-500.0,8.995e-05,2]
[355935382,1741720246401,-581.41,8.995e-05,2]
[355935383,1741720246410,-500.0,8.995e-05,2]
[355935384,1741720246420,-500.0,8.995e-05,2]
[355935385,1741720246429,-702.58,8.995e-05,2]
[355935386,1741720246438,-541.16,8.995e-05,2]
[355935387,1741720246447,-500.0,8.995e-05,2]
[355935388,1741720246457,-500.0,8.995e-05,2]
[355935389,1741720246467,-500.0,8.995e-05,2]
[355935390,1741720246477,-500.0,8.995e-05,2]
[355935391,1741720246487,-500.0,8.995e-05,2]
[355935392,1741720246496,-500.0,8.995e-05,2]
[355935393,1741720246506,-500.0,8.995e-05,2]
[355935394,1741720246515,-500.0,8.995e-05,2]
[355935395,1741720246524,-500.0,8.995e-05,2]
[355935396,1741720246534,-500.0,8.995e-05,2]
[355935397,1741720246543,-970.8,8.995e-05,14]
[355935398,1741720246552,-1726.14,8.995e-05,2]
[355935399,1741720246561,-500.0,8.995e-05,2]
[355935400,1741720246571,-500.0,8.995e-05,2]
[355935401,1741720246580,-536.46,8.995e-05,2]
[355935402,1741720246590,-500.0,8.995e-05,2]
[355935403,1741720246599,-500.0,8.995e-05,2]
[355935404,1741720246609,-500.0,8.995e-05,2]
[355935405,1741720246621,-500.0,8.995e-05,2]
[355935406,1741720246631,-500.0,8.995e-05,2]
[355935407,1741720246639,-1230.61,8.995e-05,2]
[355935408,1741720246649,-500.0,8.995e-05,2]
[355935409,1741720246658,-500.0,8.995e-05,2]
[355935410,1741720246668,-501.8506705,8.995e-05,2]
[355935411,1741720246677,-832.01,8.995e-05,2]
[355935412,1741720246686,-541.06297339,8.995e-05,2]
[355935413,1741720246695,-1933.65,8.995e-05,2]
[355935414,1741720246705,-500.0,8.995e-05,2]
[355935415,1741720246714,-500.0,8.995e-05,2]
[355935416,1741720246723,-500.0,8.995e-05,2]
[355935417,1741720246732,-1070.13,8.995e-05,2]
[355935418,1741720246741,-1100.81,8.995e-05,2]
[355935419,1741720246750,-596.43,8.995e-05,2]
[355935420,1741720246759,-1308.0,8.995e-05,2]
[355935421,1741720246769,-500.0,8.995e-05,2]
[355935422,1741720246779,-500.0,8.995e-05,2]
[355935423,1741720246789,-500.0,8.995e-05,2]
[355935424,1741720246800,-500.0,8.995e-05,2]
[355935425,1741720246809,-500.0,8.995e-05,2]
[355935426,1741720246819,-500.0,8.995e-05,2]
[355935427,1741720246829,-587.5,8.995e-05,2]
[355935428,1741720246839,-500.0,8.995e-05,2]
[355935429,1741720246849,-500.0,8.995e-05,2]
[355935430,1741720246859,-500.0,8.995e-05,2]
[355935431,1741720246871,-500.0,8.995e-05,2]
[355935432,1741720246882,-500.0,8.995e-05,2]
[355935433,1741720246892,-500.0,8.995e-05,2]
[355935434,1741720246902,-500.0,8.995e-05,2]
[355935435,1741720246911,-1886.72,8.995e-05,2]
[355935436,1741720246921,-500.0,8.995e-05,2]
[355935437,1741720246930,-500.0,8.995e-05,2]
[355935438,1741720246940,-500.0,8.995e-05,2]
[355935439,1741720246950,-500.0,8.995e-05,2]
[355935440,1741720246959,-500.0,8.995e-05,2]
[355935441,1741720246969,-500.0,8.995e-05,2]
[355935442,1741720246979,-515.08,8.995e-05,2]
[355935443,1741720246988,-500.0,8.995e-05,2]
[355935444,1741720246998,-601.66,8.995e-05,2]
[355935445,1741720247007,-229.37758101,8.995e-05,2]
[355935446,1741720247016,-1135.82,8.995e-05,2]
[355935447,1741720247025,-821.98,8.995e-05,2]
[355935448,1741720247035,-551.96790351,8.995e-05,2]
[355935449,1741720247044,-500.0,8.995e-05,2]
[355935450,1741720247054,-500.0,8.995e-05,2]
[355935451,1741720247064,-500.0,8.995e-05,2]
[355935452,1741720247074,-500.0,8.995e-05,2]
[355935453,1741720247084,-511.25,8.995e-05,2]
[355935454,1741720247094,-519.55,8.995e-05,2]
[355935455,1741720247104,-500.0,8.995e-05,2]
[355935456,1741720247118,-510.67373008,8.995e-05,2]
[355935457,1741720247128,-500.0,8.995e-05,2]
[355935458,1741720247138,-599.08,8.995e-05,2]
[355935459,1741720247148,-1755.38,8.995e-05,2]
[355935460,1741720247158,-500.0,8.995e-05,2]
[355935461,1741720247170,-500.0,8.995e-05,2]
[355935462,1741720247180,-617.82083891,8.995e-05,2]
[355935463,1741720247190,-1439.85,8.995e-05,2]
[355935464,1741720247200,-500.0,8.995e-05,2]
[355935465,1741720247209,-532.1,8.995e-05,2]
[355935466,1741720247219,-500.0,8.995e-05,2]
[355935467,1741720247228,-1239.09,8.995e-05,2]
[355935468,1741720247238,-735.83,8.995e-05,2]
[355935469,1741720247247,-507.85513319,8.995e-05,2]
[355935470,1741720247257,-500.0,8.995e-05,2]
[355935471,1741720247267,-500.0,8.995e-05,2]
[355935472,1741720247277,-500.0,8.995e-05,2]
[355935473,1741720247287,-615.23,8.995e-05,2]
[355935474,1741720247296,-500.0,8.995e-05,2]
[355935475,1741720247307,-500.0,8.995e-05,2]
[355935476,1741720247317,-500.0,8.995e-05,2]
[355935477,1741720247326,-500.0,8.995e-05,2]
[355935478,1741720247502,-1174.98,8.995e-05,2]
[355935479,1741720247533,-500.0,8.995e-05,2]
[355935480,1741720247544,-500.0,8.995e-05,2]
[355935481,1741720247555,-500.0,8.995e-05,2]
[355935482,1741720247565,-500.0,8.995e-05,2]
[355935483,1741720247575,-500.0,8.995e-05,2]
[355935484,1741720247584,-644.71,8.995e-05,2]
[355935485,1741720247594,-500.0,8.995e-05,2]
[355935486,1741720247604,-500.0,8.995e-05,2]
[355935487,1741720247613,-508.55,8.995e-05,2]
[355935488,1741720247624,-624.84,8.995e-05,2]
[355935489,1741720247633,-1880.79,8.995e-05,2]
[355935490,1741720247643,-500.0,8.995e-05,2]
[355935491,1741720247653,-500.0,8.995e-05,2]
[355935492,1741720247662,-518.87505244,8.995e-05,2]
[355935493,1741720247672,-500.0,8.995e-05,2]
[355935494,1741720247683,-500.0,8.995e-05,2]
[355935495,1741720247693,-500.0,8.995e-05,2]
[355935496,1741720247703,-500.0,8.995e-05,2]
[355935497,1741720247713,-500.0,8.995e-05,2]
[355935498,1741720247723,-857.27,8.995e-05,2]
[355935499,1741720247733,-500.0,8.995e-05,2]
[355935500,1741720247742,-263.85103964,8.995e-05,2]
[355935501,1741720247751,-822.19,8.995e-05,2]
[355935502,1741720247761,-500.0,8.995e-05,2]
[355935503,1741720247770,-500.0,8.995e-05,2]
[355935504,1741720247780,-500.0,8.995e-05,2]
[355935505,1741720247789,-500.0,8.995e-05,2]
[355935506,1741720247799,-532.94,8.995e-05,2]
[355935507,1741720247808,-553.24,8.995e-05,2]
[355935508,1741720247818,-500.0,8.995e-05,2]
[355935509,1741720247827,-500.0,8.995e-05,2]
[355935510,1741720247836,-500.0,8.995e-05,2]
[355935511,1741720247845,-500.0,8.995e-05,2]
[355935512,1741720247855,-500.0,8.995e-05,2]
[355935513,1741720247864,-588.74499386,8.995e-05,2]
[355935514,1741720247875,-1247.65,8.995e-05,2]
[355935515,1741720247884,-509.55,8.995e-05,2]
[355935516,1741720247894,-557.00286555,8.995e-05,2]
[355935517,1741720247903,-1860.83,8.995e-05,2]
[355935518,1741720247912,-1718.7,8.995e-05,2]
[355935519,1741720247922,-722.31,8.995e-05,2]
[355935520,1741720247932,-500.0,8.995e-05,2]
[355935521,1741720247942,-1299.78,8.995e-05,2]
[355935522,1741720247951,-1588.7,8.995e-05,2]
[355935523,1741720247961,-311.6060241,8.995e-05,2]
[355935524,1741720247970,-646.94,8.995e-05,2]
[355935525,1741720247980,-501.33,8.995e-05,2]
[355935526,1741720247990,-510.44,8.995e-05,2]
[355935527,1741720248001,-500.0,8.995e-05,2]
[355935528,1741720248012,-1649.13,8.995e-05,2]
[355935529,1741720248023,-2329.43,8.995e-05,2]
[355935530,1741720248034,-500.0,8.995e-05,2]
[355935531,1741720248044,-500.0,8.995e-05,2]
[355935532,1741720248055,-500.0,8.995e-05,2]
[355935533,1741720248065,-500.0,8.995e-05,2]
[355935534,1741720248075,-500.0,8.995e-05,2]
[355935535,1741720248085,-500.0,8.995e-05,2]
[355935536,1741720248095,-1607.11,8.995e-05,2]
[355935537,1741720248105,-500.0,8.995e-05,2]
[355935538,1741720248115,-500.0,8.995e-05,2]
[355935539,1741720248128,-500.0,8.995e-05,2]
[355935540,1741720248137,-500.0,8.995e-05,2]
[355935541,1741720248147,-500.0,8.995e-05,2]
[355935542,1741720248157,-266.71211139,8.995e-05,2]
[355935543,1741720248171,-500.0,8.995e-05,2]
[355935544,1741720248182,-467.61341126,8.995e-05,2]
[355935545,1741720248192,-681.0,8.995e-05,2]
[355935546,1741720248202,-500.0,8.995e-05,2]
[355935547,1741720248217,-500.0,8.995e-05,2]
[355935548,1741720248228,-500.0,8.995e-05,2]
[355935549,1741720248238,-1861.42,8.995e-05,2]
[355935550,1741720248252,-557.54860482,8.995e-05,2]
[355935551,1741720248262,-500.0,8.995e-05,2]
[355935552,1741720248273,-500.0,8.995e-05,2]
[355935553,1741720248282,-500.0,8.995e-05,2]
[355935554,1741720248291,-545.22,8.995e-05,2]
[355935555,1741720248301,-500.0,8.995e-05,2]
[355935556,1741720248311,-2012.69,8.995e-05,2]
[355935557,1741720248320,-1298.29,8.995e-05,2]
[355935558,1741720248330,-1708.14,8.995e-05,2]
[355935559,1741720248340,-500.0,8.995e-05,2]
[355935560,1741720248349,-507.18,8.995e-05,2]
[355935561,1741720248359,-500.0,8.995e-05,2]
[355935562,1741720248370,-500.0,8.995e-05,2]
[355935563,1741720248380,-500.0,8.995e-05,2]
[355935564,1741720248390,-544.97867772,8.995e-05,2]
[355935565,1741720248400,-1118.33,8.995e-05,2]
[355935566,1741720248409,-500.0,8.995e-05,2]
[355935567,1741720248420,-500.0,8.995e-05,2]
[355935568,1741720248430,-500.0,8.995e-05,2]
[355935569,1741720248439,-161.68007276,8.995e-05,2]
[355935570,1741720248449,-500.0,8.995e-05,2]
[355935571,1741720248458,-1744.84,8.995e-05,2]
[355935572,1741720248468,-1369.49,8.995e-05,2]
[355935573,1741720248477,-500.0,8.995e-05,2]
[355935574,1741720248487,-1662.21,8.995e-05,2]
[355935575,1741720248496,-500.0,8.995e-05,2]
[355935576,1741720248506,-791.0,8.995e-05,2]
[355935577,1741720248516,-500.0,8.995e-05,2]
[355935578,1741720248525,-500.0,8.995e-05,2]
[355935579,1741720248535,-500.0,8.995e-05,2]
[355935580,1741720248545,-852.21,8.995e-05,2]
[355935581,1741720248554,-500.0,8.995e-05,2]
[355935582,1741720248564,-500.0,8.995e-05,2]
[355935583,1741720248574,-500.0,8.995e-05,2]
[355935584,1741720248584,-500.0,8.995e-05,2]
[355935585,1741720248594,-1079.8,8.995e-05,2]
[355935586,1741720248604,-500.0,8.995e-05,2]
[355935587,1741720248614,-889.26,8.995e-05,2]
[355935588,1741720248625,-268.91935628,8.995e-05,2]
[355935589,1741720248635,-1264.8,8.995e-05,2]
[355935590,1741720248645,-500.0,8.995e-05,2]
[355935591,1741720248655,-1075.18,8.995e-05,2]
[355935592,1741720248665,-500.0,8.995e-05,2]
[355935593,1741720248675,-521.61957893,8.995e-05,2]
[355935594,1741720248684,-1833.88,8.995e-05,2]
[355935595,1741720248694,-1504.03,8.995e-05,2]
[355935596,1741720248704,-500.0,8.995e-05,2]
[355935597,1741720248713,-1072.18,8.995e-05,2]
[355935598,1741720248723,-500.0,8.995e-05,2]
[355935599,1741720248733,-500.0,8.995e-05,2]
[355935600,1741720248743,-1794.49,8.995e-05,2]
[355935601,1741720248752,-500.0,8.995e-05,2]
[355935602,1741720248762,-1470.33,8.995e-05,2]
[355935603,1741720248772,-1102.18,8.995e-05,2]
[355935604,1741720248782,-612.81730498,8.995e-05,2]
[355935605,1741720248791,-500.0,8.995e-05,2]
[355935606,1741720248801,-1096.51,8.996e-05,2]
[355935607,1741720248811,-739.51,8.996e-05,2]
[355935608,1741720248820,-1000.28,8.996e-05,2]
[355935609,1741720248830,-500.0,8.996e-05,2]
[355935610,1741720248839,-584.11,8.996e-05,2]
[355935611,1741720248849,-500.0,8.996e-05,2]
[355935612,1741720248859,-763.06,8.996e-05,2]
[355935613,1741720248870,-500.0,8.996e-05,2]
[355935614,1741720248880,-500.0,8.996e-05,2]
[355935615,1741720248890,-692.48,8.996e-05,2]
[355935616,1741720248900,-500.0,8.996e-05,2]
[355935617,1741720248909,-500.0,8.996e-05,2]
[355935618,1741720248919,-500.0,8.996e-05,2]
[355935619,1741720248930,-1704.89,8.996e-05,2]
[355935620,1741720248939,-500.0,8.996e-05,2]
[355935621,1741720248949,-500.0,8.996e-05,2]
[355935622,1741720248958,-515.76,8.996e-05,2]
[355935623,1741720248968,-500.0,8.996e-05,2]
[355935624,1741720248977,-500.0,8.996e-05,2]
[355935625,1741720248987,-500.0,8.996e-05,2]
[355935626,1741720248997,-500.0,8.996e-05,2]
[355935627,1741720249006,-500.0,8.996e-05,2]
[355935628,1741720249016,-500.0,8.996e-05,2]
[355935629,1741720249026,-1659.47,8.996e-05,2]
[355935630,1741720249036,-689.85,8.996e-05,2]
[355935631,1741720249046,-500.0,8.996e-05,2]
[355935632,1741720249055,-733.18,8.996e-05,2]
[355935633,1741720249065,-565.38998094,8.996e-05,2]
[355935634,1741720249076,-500.0,8.996e-05,2]
[355935635,1741720249086,-989.11,8.996e-05,2]
[355935636,1741720249096,-500.0,8.996e-05,2]
[355935637,1741720249105,-500.0,8.996e-05,2]
[355935638,1741720249115,-500.0,8.996e-05,2]
[355935639,1741720249128,-500.0,8.996e-05,2]
[355935640,1741720249138,-500.0,8.996e-05,2]
[355935641,1741720249149,-500.0,8.996e-05,2]
[355935642,1741720249163,-500.0,8.996e-05,2]
[355935643,1741720249173,-593.69,8.996e-05,2]
[355935644,1741720249183,-822.9,8.996e-05,2]
[355935645,1741720249194,-500.0,8.996e-05,2]
[355935646,1741720249204,-500.0,8.996e-05,2]
[355935647,1741720249214,-1302.95,8.996e-05,2]
[355935648,1741720249225,-689.96,8.996e-05,2]
[355935649,1741720249235,-853.26,8.996e-05,2]
[355935650,1741720249245,-1067.2,8.996e-05,2]
[355935651,1741720249255,-500.0,8.996e-05,2]
[355935652,1741720249265,-500.0,8.996e-05,2]
[355935653,1741720249275,-522.54543641,8.996e-05,2]
[355935654,1741720249285,-500.0,8.996e-05,2]
[355935655,1741720249294,-500.0,8.996e-05,2]
[355935656,1741720249304,-2033.0,8.996e-05,2]
[355935657,1741720249315,-1278.0,8.996e-05,2]
[355935658,1741720249324,-500.0,8.996e-05,2]
[355935659,1741720249335,-731.89,8.996e-05,2]
[355935660,1741720249345,-511.4257558,8.996e-05,2]
[355935661,1741720249354,-500.0,8.996e-05,2]
[355935662,1741720249364,-500.0,8.996e-05,2]
[355935663,1741720249379,-500.0,8.996e-05,2]
[355935664,1741720249388,-500.0,8.996e-05,2]
[355935665,1741720249399,-500.0,8.996e-05,2]
[355935666,1741720249408,-595.21648223,8.996e-05,2]
[355935667,1741720249418,-871.9,8.996e-05,2]
[355935668,1741720249429,-500.0,8.996e-05,2]
[355935669,1741720249439,-500.0,8.996e-05,2]
[355935670,1741720249449,-571.0,8.996e-05,2]
[355935671,1741720249459,-500.0,8.996e-05,2]
[355935672,1741720249468,-1418.0,8.996e-05,2]
[355935673,1741720249478,-500.0,8.996e-05,2]
[355935674,1741720249487,-500.0,8.996e-05,2]
[355935675,1741720249497,-1093.59,8.996e-05,2]
[355935676,1741720249506,-786.0,8.996e-05,2]
[355935677,1741720249516,-1221.57,8.996e-05,2]
[355935678,1741720249525,-2010.54,8.996e-05,2]
[355935679,1741720249535,-500.0,8.996e-05,2]
[355935680,1741720249544,-500.0,8.996e-05,2]
[355935681,1741720249553,-500.0,8.996e-05,2]
[355935682,1741720249563,-492.47865769,8.996e-05,2]
[355935683,1741720249572,-767.44,8.996e-05,2]
[355935684,1741720249581,-500.0,8.996e-05,2]
[355935685,1741720249590,-500.0,8.996e-05,2]
[355935686,1741720249599,-500.0,8.996e-05,2]
[355935687,1741720249608,-541.0,8.996e-05,2]
[355935688,1741720249618,-500.0,8.996e-05,2]
[355935689,1741720249628,-500.0,8.996e-05,2]
[355935690,1741720249638,-907.0,8.996e-05,2]
[355935691,1741720249647,-2084.62,8.996e-05,2]
[355935692,1741720249657,-1428.0,8.996e-05,2]
[355935693,1741720249666,-1270.0,8.996e-05,2]
[355935694,1741720249676,-604.38,8.996e-05,2]
[355935695,1741720249686,-4077.0,8.996e-05,2]
[355935696,1741720249696,-500.0,8.996e-05,2]
[355935697,1741720249705,-500.0,8.996e-05,2]
[355935698,1741720249715,-500.0,8.996e-05,2]
[355935699,1741720249725,-1260.17,8.996e-05,2]
[355935700,1741720249735,-643.91,8.996e-05,2]
[355935701,1741720249744,-500.0,8.996e-05,2]
[355935702,1741720249754,-1288.52,8.996e-05,2]
[355935703,1741720249763,-500.0,8.996e-05,2]
[355935704,1741720249773,-500.0,8.996e-05,2]
[355935705,1741720249782,-500.0,8.996e-05,2]
[355935706,1741720249793,-500.0,8.996e-05,2]
[355935707,1741720249802,-1513.11,8.996e-05,2]
[355935708,1741720249811,-500.0,8.996e-05,2]
[355935709,1741720249821,-531.0,8.996e-05,2]
[355935710,1741720249830,-549.39,8.996e-05,2]
[355935711,1741720249839,-1129.22,8.996e-05,2]
[355935712,1741720249849,-500.0,8.996e-05,2]
[355935713,1741720249858,-527.39370091,8.996e-05,2]
[355935714,1741720249868,-1703.8,8.996e-05,2]
[355935715,1741720249879,-691.31,8.996e-05,2]
[355935716,1741720249888,-504.16034882,8.996e-05,2]
[355935717,1741720249897,-500.0,8.996e-05,2]
[355935718,1741720249907,-500.0,8.996e-05,2]
[355935719,1741720249916,-510.86239539,8.996e-05,2]
[355935720,1741720249926,-500.0,8.996e-05,2]
[355935721,1741720249935,-384.04412704,8.996e-05,2]
[355935722,1741720249944,-500.0,8.996e-05,2]
[355935723,1741720249954,-852.82,8.996e-05,2]
[355935724,1741720249963,-500.0,8.996e-05,2]
[355935725,1741720249972,-1157.92,8.996e-05,2]
[355935726,1741720249982,-510.37622423,8.996e-05,2]
[355935727,1741720249991,-732.78,8.996e-05,2]
[355935728,1741720250000,-500.0,8.996e-05,2]
[355935729,1741720250009,-1677.75,8.996e-05,2]
[355935730,1741720250018,-500.0,8.996e-05,2]
[355935731,1741720250027,-510.53308249,8.996e-05,2]
[355935732,1741720250037,-500.0,8.996e-05,2]
[355935733,1741720250046,-501.96793643,8.996e-05,2]
[355935734,1741720250055,-500.0,8.996e-05,2]
[355935735,1741720250064,-843.77,8.996e-05,2]
[355935736,1741720250073,-848.41,8.998e-05,2]
[355935737,1741720250082,-1344.87,8.998e-05,2]
[355935738,1741720250092,-500.0,8.998e-05,2]
[355935739,1741720250101,-757.73,8.998e-05,2]
[355935740,1741720250110,-500.0,8.998e-05,2]
[355935741,1741720250121,-500.0,8.998e-05,2]
[355935742,1741720250131,-1310.9120015,8.999e-05,3]
[355935743,1741720250140,-1183.0,8.999e-05,2]
[355935744,1741720250150,-978.16,8.999e-05,2]
[355935745,1741720250164,-115550.39026334,9e-05,2]
[355935746,1741720250173,-2366848.85458286,9e-05,2]
[355935747,1741720251776,-500.0,8.994e-05,2]
[355935748,1741720251786,-26082.85828306,9e-05,2]
[355935749,1741720251797,-489.28450001,9e-05,2]
[355935750,1741720251821,-655.00006345,9e-05,2]
[355935751,1741720252036,-58588.58520925,9e-05,2]
[355935752,1741720252053,-3436.2066,9e-05,2]
[355935754,1741720252769,-500.0,8.994e-05,2]
[355935755,1741720252778,-272944.46765033,9e-05,2]
[355935756,1741720252789,-302.21922318,9e-05,2]
[355935757,1741720252800,-845.248,9e-05,2]
[355935758,1741720252811,-1000000.0,9e-05,2]
[355935759,1741720252833,-392.29490377,9e-05,2]
[355935760,1741720252856,-188606.85648351,9e-05,2]
[355935761,1741720252865,-34171.0,9e-05,2]
[355935762,1741720252876,-2619.79514067,9e-05,2]
[355935763,1741720252885,-200.0,9e-05,3]
[355935764,1741720252894,-550.0,9e-05,2]
[355935765,1741720252904,-314.93555449,9e-05,2]
[355935766,1741720252913,-38641.77922976,9e-05,2]
[355935767,1741720252922,-109037.1940694,9.08e-05,2]
[355935768,1741720252931,-357.56,9.09e-05,2]
[355935769,1741720252941,-150.0,9.09e-05,2]
[355935770,1741720252951,-291.6,9.1e-05,2]
[355935771,1741720252960,-550.96723562,9.1e-05,2]
[355935772,1741720252969,-900.98,9.1e-05,2]
[355935773,1741720252979,-150.0,9.11e-05,2]
[355935774,1741720252988,-300.0,9.11e-05,2]
[355935775,1741720252997,-689.12,9.11e-05,2]
[355935776,1741720253007,-440.94,9.11e-05,2]
[355935777,1741720253016,-286.84579896,9.179e-05,2]
[355935778,1741720253025,-425.41478167,9.197e-05,2]
[355935779,1741720253035,-512.34,9.209e-05,2]
[355935780,1741720253044,-476.86,9.211e-05,2]
[355935781,1741720253054,-1000.0,9.247e-05,2]
[355935782,1741720253063,-500.0,9.267e-05,2]
[355935783,1741720253073,-4948.81,9.267e-05,2]
[355935784,1741720253083,-805.83,9.267e-05,2]
[355935785,1741720253092,-1037.27,9.267e-05,2]
[355935786,1741720253102,-1906.32,9.267e-05,2]
[355935787,1741720253111,-153.80157,9.267e-05,2]
[355935788,1741720253121,-571.26,9.267e-05,2]
[355935789,1741720253131,-500.0,9.267e-05,2]
[355935790,1741720253140,-1375.44,9.267e-05,2]
[355935791,1741720253161,-654.93,9.267e-05,2]
[355935792,1741720253180,-1923.42,9.267e-05,2]
[355935793,1741720253199,-837.14,9.267e-05,2]
[355935794,1741720253218,-1745.204609,9.267e-05,2]
[355935795,1741720253235,-4277.2,9.267e-05,2]
[355935796,1741720253251,-1457.83,9.267e-05,2]
[355935797,1741720253271,-781.77,9.267e-05,2]
[355935798,1741720253291,-803.65,9.267e-05,2]
[355935799,1741720253310,-1004.12,9.267e-05,2]
[355935800,1741720253327,-2093.92,9.267e-05,2]
[355935801,1741720253349,-500.0,9.267e-05,2]
[355935802,1741720253365,-756.37,9.267e-05,2]
[355935803,1741720253381,-1886.84,9.267e-05,2]
[355935804,1741720253400,-1819.67,9.267e-05,2]